bitfinex/quotes_BTCUSD_20260125
["timestamp","ask_amount","ask_price","bid_price","bid_amount"]
[1769342088472,0.12045562,88583.0,88570.0,0.00024847]
[1769342089079,0.12045562,88583.0,88569.0,0.37555319]
[1769342089612,0.04403754,88582.0,88569.0,0.35005319]
[1769342089818,0.00910131,88581.0,88569.0,0.35005319]
[1769342089982,0.00910131,88585.0,88569.0,0.35005319]
[1769342090181,0.00910131,88585.0,88569.0,0.33315319]
[1769342092430,1.11434677,88586.0,88569.0,0.33315319]
[1769342092631,0.12070409,88585.0,88569.0,0.33315319]
[1769342094464,0.40969194,88583.0,88568.0,0.00054225]
[1769342094627,1.12344808,88582.0,88568.0,0.00054225]
[1769342094823,1.11434677,88581.0,88568.0,0.00054225]
[1769342095068,0.00910131,88580.0,88568.0,0.00054225]
[1769342095858,1.12344808,88580.0,88568.0,0.00054225]
[1769342096203,0.11160278,88579.0,88568.0,0.00054225]
[1769342096405,0.00910131,88578.0,88568.0,0.00054225]
[1769342097851,1.11434677,88577.0,88568.0,0.00054225]
[1769342100102,0.00910131,88576.0,88568.0,0.00054225]
[1769342100302,0.00910131,88576.0,88562.0,0.0002]
[1769342100502,1.12359038,88576.0,88562.0,0.0002]
[1769342100822,1.11448907,88576.0,88562.0,0.0002]
[1769342104322,0.00910131,88575.0,88562.0,0.0002]
[1769342108102,1.11448907,88576.0,88562.0,0.0002]
[1769342108351,0.0001423,88576.0,88563.0,0.41380575]
[1769342108734,0.0001423,88576.0,88567.0,0.41380575]
[1769342108935,0.0001423,88576.0,88569.0,0.41380575]
[1769342109555,0.0001423,88576.0,88570.0,0.00031962]
[1769342109935,0.0001423,88576.0,88569.0,0.41380575]
[1769342110433,0.0001423,88576.0,88570.0,0.00112871]
[1769342110646,0.0001423,88576.0,88564.0,0.00112871]
[1769342110852,0.0001423,88576.0,88564.0,0.41493446]
[1769342111057,0.0001423,88576.0,88564.0,0.41380575]
[1769342111254,0.0001423,88576.0,88565.0,0.00073803]
[1769342111975,0.0001423,88576.0,88567.0,0.41380575]
[1769342112178,0.0001423,88576.0,88569.0,0.41380575]
[1769342113372,0.0001423,88576.0,88572.0,1.11620194]
[1769342113543,0.0001423,88576.0,88573.0,0.41380575]
[1769342114789,0.0001423,88576.0,88567.0,1.08722242]
[1769342114995,0.0001423,88576.0,88568.0,0.44856785]
[1769342121366,0.0001423,88576.0,88568.0,1.53579027]
[1769342124729,0.0001423,88576.0,88569.0,0.00059279]
[1769342126752,0.0001423,88576.0,88568.0,1.53579027]
[1769342127126,0.0001423,88576.0,88568.0,1.5318505]
[1769342129280,0.0001423,88576.0,88568.0,0.44462808]
[1769342132244,0.95322802,88585.0,88569.0,0.00047941]
[1769342133507,1.38253451,88585.0,88569.0,0.00047941]
[1769342133915,1.38253451,88585.0,88569.0,0.00068429]
[1769342136103,0.42930649,88584.0,88569.0,0.00068429]
[1769342136445,1.14281734,88583.0,88569.0,0.00068429]
[1769342137370,1.14281734,88583.0,88560.0,0.0004]
[1769342137371,1.14281734,88580.0,88555.0,0.09367101]
[1769342137592,1.14281734,88573.0,88555.0,0.09381331]
[1769342137821,1.14281734,88571.0,88555.0,0.09381331]
[1769342138264,0.42930649,88570.0,88555.0,0.09381331]
[1769342138460,1.14281734,88569.0,88555.0,0.09381331]
[1769342140409,1.14281734,88579.0,88555.0,0.09381331]
[1769342140571,0.42930649,88576.0,88555.0,0.52106459]
[1769342140777,1.58260151,88575.0,88555.0,0.52106459]
[1769342140936,1.14281734,88574.0,88555.0,0.52106459]
[1769342141141,1.25442012,88573.0,88555.0,0.52106459]
[1769342141403,0.42930649,88573.0,88555.0,0.52106459]
[1769342141688,1.14281734,88572.0,88555.0,0.52106459]
[1769342145900,0.04034519,88594.0,88555.0,0.09381331]
[1769342145901,1.14281734,88570.0,88555.0,0.09381331]
[1769342146059,0.17352,88586.0,88555.0,0.09381331]
[1769342146060,1.14281734,88568.0,88555.0,0.09381331]
[1769342147969,0.42930649,88569.0,88555.0,0.09381331]
[1769342148381,0.44059712,88569.0,88555.0,0.09381331]
[1769342149012,0.42930649,88569.0,88555.0,0.09381331]
[1769342150410,0.01047768,88568.0,88555.0,0.09381331]
[1769342150820,0.12208046,88568.0,88555.0,0.09381331]
[1769342151542,0.42930649,88566.0,88555.0,0.09381331]
[1769342151840,0.42930649,88560.0,88552.0,0.0004]
[1769342152061,1.14281734,88557.0,88551.0,0.0001469]
[1769342154309,0.95308775,88557.0,88551.0,0.0001469]
[1769342155360,1.38239424,88557.0,88541.0,0.21892]
[1769342156329,0.00014238,88560.0,88541.0,0.21892]
[1769342156872,0.00014238,88560.0,88544.0,0.42725128]
[1769342157625,0.00014238,88560.0,88545.0,1.13653272]
[1769342158711,0.00014238,88560.0,88542.0,0.0001469]
[1769342158712,0.00014238,88560.0,88548.0,0.35765128]
[1769342158919,0.00014238,88560.0,88550.0,0.25759111]
[1769342159246,0.00014238,88560.0,88549.0,1.07997934]
[1769342159402,0.00014238,88560.0,88549.0,0.96687256]
[1769342159598,0.00014238,88560.0,88549.0,0.79721239]
[1769342159900,0.00014238,88560.0,88549.0,0.62755221]
[1769342160103,0.00014238,88560.0,88549.0,0.51444543]
[1769342160735,0.00014238,88560.0,88545.0,0.3735316]
[1769342160944,0.00014238,88560.0,88546.0,1.13653272]
[1769342161305,0.00014238,88560.0,88547.0,0.00042857]
[1769342161503,0.06043927,88560.0,88547.0,0.00042857]
[1769342161725,0.00014238,88560.0,88543.0,0.00042857]
[1769342161928,0.42930649,88558.0,88543.0,0.00042857]
[1769342162340,0.42930649,88558.0,88543.0,1.13696129]
[1769342162656,0.42930649,88558.0,88543.0,1.08653272]
[1769342166769,0.42930649,88558.0,88544.0,0.00074637]
[1769342167757,0.00014238,88560.0,88544.0,0.00074637]
[1769342168096,0.00014238,88560.0,88546.0,1.10435208]
[1769342168391,0.1737069,88573.0,88548.0,1.10435208]
[1769342168392,0.03404576,88573.0,88548.0,1.10435208]
[1769342168599,0.0001469,88573.0,88550.0,1.10435208]
[1769342168835,0.42328851,88573.0,88552.0,1.10435208]
[1769342169129,0.42314161,88572.0,88553.0,0.00074664]
[1769342169368,1.51033905,88572.0,88553.0,0.00074664]
[1769342169606,1.51033905,88572.0,88553.0,1.10435208]
[1769342171783,1.08719744,88572.0,88553.0,1.10435208]
[1769342171986,0.42314161,88571.0,88553.0,1.10435208]
[1769342172776,1.51033905,88571.0,88553.0,1.10435208]
[1769342172980,0.11160278,88570.0,88553.0,1.10435208]
[1769342173269,1.51033905,88571.0,88553.0,1.10435208]
[1769342173270,1.44934493,88571.0,88553.0,1.10435208]
[1769342179680,0.08532043,88571.0,88548.0,0.00047344]
[1769342179879,0.0001469,88573.0,88553.0,0.4585283]
[1769342180086,0.0001469,88573.0,88556.0,1.15360493]
[1769342180286,0.0001469,88573.0,88557.0,1.61213323]
[1769342182406,0.0001469,88573.0,88557.0,0.4585283]
[1769342182619,0.08571923,88635.0,88559.0,0.4585283]
[1769342182620,1.10481401,88587.0,88559.0,0.4585283]
[1769342182821,1.10496091,88581.0,88562.0,0.4585283]
[1769342183027,0.01047768,88580.0,88562.0,0.4585283]
[1769342183228,1.10481401,88580.0,88562.0,0.4585283]
[1769342183437,0.45785626,88577.0,88556.0,0.6320883]
[1769342183627,0.0001469,88581.0,88556.0,0.6320883]
[1769342183628,1.10481401,88574.0,88556.0,0.74369108]
[1769342183832,1.10481401,88574.0,88556.0,0.6320883]
[1769342185174,1.10481401,88574.0,88557.0,1.15360493]
[1769342185486,1.10481401,88574.0,88557.0,1.61213323]
[1769342187081,1.10481401,88574.0,88556.0,0.17356]
[1769342187082,1.10481401,88572.0,88556.0,0.17356]
[1769342187423,1.10481401,88571.0,88556.0,0.17356]
[1769342188106,0.0001469,88581.0,88556.0,0.17356]
[1769342188311,0.0001469,88581.0,88571.0,1.15956517]
[1769342188669,0.0001469,88581.0,88568.0,0.4585283]
[1769342188924,0.0001469,88581.0,88569.0,0.11160278]
[1769342189741,0.0001469,88581.0,88568.0,0.4585283]
[1769342190379,0.0001469,88581.0,88569.0,0.00044241]
[1769342191592,0.0001469,88581.0,88568.0,0.4585283]
[1769342196751,0.0001469,88581.0,88565.0,1.15360493]
[1769342196752,0.0001469,88590.0,88581.0,0.0001469]
[1769342196978,0.0001469,88590.0,88576.0,0.01189335]
[1769342197179,0.0001469,88590.0,88576.0,0.05424525]
[1769342197403,0.0001469,88590.0,88576.0,0.01189335]
[1769342197657,0.45062913,88601.0,88576.0,0.01204025]
[1769342197853,0.0338884,88598.0,88581.0,0.0112891]
[1769342198000,0.0338884,88598.0,88577.0,0.03210362]
[1769342198001,0.00014251,88601.0,88586.0,0.01128846]
[1769342198209,0.0001469,88626.0,88589.0,0.01128808]
[1769342198210,1.06258295,88622.0,88589.0,0.01128808]
[1769342198419,0.63543275,88624.0,88589.0,0.01128808]
[1769342198420,0.01204025,88612.0,88589.0,0.00014251]
[1769342198625,1.06258295,88616.0,88590.0,1.47559527]
[1769342198835,1.0964658,88616.0,88594.0,1.0520763]
[1769342199043,0.03388285,88616.0,88598.0,1.0520763]
[1769342199238,0.45062913,88619.0,88601.0,0.42351897]
[1769342199542,0.45062913,88619.0,88602.0,0.53512175]
[1769342199880,1.51321208,88619.0,88602.0,0.53512175]
[1769342200055,1.06258295,88618.0,88602.0,0.53512175]
[1769342200410,0.88326351,88618.0,88602.0,0.53512175]
[1769342202322,0.88326351,88618.0,88603.0,0.11160278]
[1769342203580,0.88326351,88618.0,88602.0,0.42351897]
[1769342203761,0.03387998,88622.0,88603.0,1.0520763]
[1769342203933,0.03387998,88622.0,88604.0,0.42351897]
[1769342204133,1.09646293,88622.0,88604.0,0.42351897]
[1769342204338,0.45062913,88621.0,88604.0,0.42351897]
[1769342204571,0.03387998,88622.0,88604.0,0.42351897]
[1769342204572,0.45062913,88620.0,88604.0,0.42351897]
[1769342204786,1.06258295,88618.0,88598.0,0.42351897]
[1769342204938,1.06258295,88616.0,88598.0,0.48545404]
[1769342205354,1.06258295,88616.0,88598.0,0.42351897]
[1769342205795,0.45062913,88616.0,88598.0,0.42351897]
[1769342206003,1.06258295,88615.0,88598.0,0.42351897]
[1769342219807,0.86432152,88615.0,88598.0,0.42351897]
[1769342221992,0.45062913,88616.0,88600.0,1.0520763]
[1769342222216,0.62414913,88624.0,88604.0,1.0520763]
[1769342222373,0.62414913,88624.0,88607.0,0.42351897]
[1769342222580,0.65802666,88624.0,88608.0,0.00983697]
[1769342222811,0.62414913,88624.0,88608.0,0.00983697]
[1769342223035,1.68101139,88624.0,88608.0,0.00983697]
[1769342223341,1.05686226,88623.0,88608.0,0.00983697]
[1769342223530,1.05686226,88623.0,88609.0,0.06067959]
[1769342223829,1.05686226,88623.0,88608.0,0.00983697]
[1769342225164,0.41728291,88623.0,88608.0,0.00983697]
[1769342225369,1.47414517,88623.0,88608.0,0.00983697]
[1769342226365,0.41728291,88623.0,88608.0,0.00983697]
[1769342226564,1.05686226,88622.0,88608.0,0.00983697]
[1769342227383,1.05686226,88622.0,88607.0,0.42351897]
[1769342227604,0.82036324,88622.0,88607.0,0.43970227]
[1769342233919,0.82036324,88622.0,88606.0,1.14299181]
[1769342234592,0.44764016,88621.0,88602.0,0.60457739]
[1769342234796,1.08688213,88619.0,88602.0,0.60457739]
[1769342235017,1.08688213,88619.0,88602.0,0.67952266]
[1769342235201,0.90586448,88619.0,88602.0,0.67952266]
[1769342235400,1.35350464,88619.0,88602.0,0.67952266]
[1769342237285,1.35350464,88619.0,88602.0,0.60457739]
[1769342249817,0.90586448,88619.0,88602.0,0.60457739]
[1769342249987,1.08688213,88617.0,88602.0,0.60457739]
[1769342250168,1.08688213,88617.0,88602.0,0.17344]
[1769342250376,1.53452229,88617.0,88602.0,0.17344]
[1769342250972,1.01686359,88614.0,88595.0,0.04516]
[1769342251197,0.44764016,88611.0,88595.0,0.04516]
[1769342251513,0.44764016,88607.0,88595.0,0.04516]
[1769342251689,1.46450375,88607.0,88595.0,0.04516]
[1769342252411,1.46450375,88607.0,88589.0,0.4312799]
[1769342252635,1.46450375,88607.0,88590.0,0.09460001]
[1769342253607,1.01686359,88607.0,88589.0,0.4312799]
[1769342253813,0.17344,88618.0,88589.0,0.4312799]
[1769342253814,1.44433296,88606.0,88589.0,0.4312799]
[1769342256289,1.44433296,88606.0,88590.0,0.01082717]
[1769342256496,1.44433296,88606.0,88590.0,1.09218081]
[1769342256700,1.44433296,88606.0,88590.0,1.08135364]
[1769342256919,1.01686359,88616.0,88591.0,0.11160278]
[1769342257120,0.42746937,88615.0,88589.0,0.00014251]
[1769342257328,1.44433296,88615.0,88589.0,0.00014251]
[1769342257521,1.44433296,88615.0,88590.0,1.08135364]
[1769342257729,1.44433296,88615.0,88593.0,0.42251668]
[1769342257952,1.44433296,88615.0,88589.0,0.00014251]
[1769342257953,1.44433296,88615.0,88595.0,1.50387032]
[1769342258157,1.44433296,88615.0,88595.0,1.50375949]
[1769342258536,1.8083,88617.0,88595.0,1.50375949]
[1769342258815,0.42746937,88615.0,88595.0,1.50375949]
[1769342259073,1.44433296,88613.0,88596.0,0.11273031]
[1769342260643,1.44458886,88613.0,88596.0,0.11273031]
[1769342262816,1.44458886,88613.0,88596.0,0.00112753]
[1769342263108,1.44458886,88613.0,88596.0,0.00167426]
[1769342263494,0.42772527,88613.0,88596.0,0.00167426]
[1769342263813,0.42746937,88610.0,88590.0,1.08135364]
[1769342263964,1.44433296,88609.0,88590.0,1.08135364]
[1769342264565,1.44458886,88609.0,88590.0,1.08135364]
[1769342265015,1.44458886,88609.0,88590.0,1.50387032]
[1769342267775,1.44458886,88609.0,88589.0,0.00014251]
[1769342267978,1.44458886,88609.0,88590.0,1.08135364]
[1769342268172,1.44458886,88609.0,88590.0,1.50387032]
[1769342268396,1.26734117,88609.0,88590.0,1.50387032]
[1769342268595,1.26734117,88609.0,88590.0,0.42251668]
[1769342268797,0.8398718,88609.0,88591.0,1.08135364]
[1769342269044,0.42746937,88608.0,88591.0,1.08135364]
[1769342269409,1.26885774,88608.0,88591.0,1.12536765]
[1769342269616,1.26911364,88608.0,88591.0,1.12536765]
[1769342272856,1.26911364,88608.0,88591.0,1.08135364]
[1769342273271,1.26911364,88608.0,88591.0,1.50387032]
[1769342275371,0.42772527,88608.0,88591.0,0.42251668]
[1769342275572,0.42772527,88608.0,88592.0,0.42251668]
[1769342275781,0.42772527,88608.0,88593.0,0.05960992]
[1769342277930,0.42772527,88608.0,88594.0,0.00043468]
[1769342278330,0.42772527,88608.0,88593.0,0.00043468]
[1769342281405,0.42772527,88608.0,88592.0,1.50387032]
[1769342287522,0.42772527,88608.0,88592.0,0.42251668]
[1769342287822,0.42772527,88608.0,88593.0,1.13454744]
[1769342287995,0.42772527,88608.0,88593.0,1.12527691]
[1769342288173,0.42772527,88608.0,88594.0,0.00928393]
[1769342298062,0.42772527,88608.0,88593.0,1.06566699]
[1769342300204,0.42772527,88608.0,88594.0,0.01002115]
[1769342300416,0.84138837,88607.0,88589.0,0.00014251]
[1769342300591,0.84138837,88603.0,88589.0,0.00014251]
[1769342300785,0.0002559,88608.0,88589.0,0.00014251]
[1769342300786,0.84138837,88601.0,88589.0,0.00014251]
[1769342301104,0.84138837,88597.0,88589.0,0.00014251]
[1769342301306,0.0001087,88601.0,88589.0,0.00014251]
[1769342301537,0.84138837,88598.0,88589.0,0.00014251]
[1769342301740,0.84138837,88596.0,88589.0,0.00014251]
[1769342301884,1.27197872,88596.0,88589.0,0.00014251]
[1769342302087,0.0001087,88598.0,88589.0,0.00014251]
[1769342302486,0.84124729,88593.0,88589.0,0.00014251]
[1769342302697,0.84124729,88591.0,88589.0,0.00014251]
[1769342305141,0.43059035,88597.0,88589.0,0.00014251]
[1769342305323,0.84124729,88596.0,88589.0,0.00014251]
[1769342313687,0.84124729,88595.0,88589.0,0.00014251]
[1769342314131,0.84124729,88594.0,88589.0,0.00014251]
[1769342314344,0.00014251,88589.0,88562.0,0.04516]
[1769342314555,0.41515327,88585.0,88568.0,0.0001857]
[1769342314774,0.41515327,88584.0,88568.0,0.0001857]
[1769342314945,1.15347001,88583.0,88568.0,0.0001857]
[1769342318668,0.41515327,88582.0,88568.0,0.0001857]
[1769342318882,1.15328617,88579.0,88568.0,0.0001857]
[1769342319230,0.41515327,88575.0,88568.0,0.0001857]
[1769342319531,1.15328617,88574.0,88568.0,0.0001857]
[1769342320793,0.92526772,88574.0,88568.0,0.0001857]
[1769342321215,0.02187364,88584.0,88568.0,0.0001857]
[1769342321216,0.17348,88585.0,88574.0,0.00581334]
[1769342321431,0.9275479,88593.0,88574.0,0.00581334]
[1769342321587,0.9275479,88593.0,88575.0,0.41753098]
[1769342321792,0.17348,88588.0,88579.0,0.4082867]
[1769342322048,0.17348,88591.0,88580.0,0.00924359]
[1769342322189,0.17348,88591.0,88569.0,0.01129063]
[1769342322190,0.17348,88591.0,88582.0,0.4082867]
[1769342322406,0.17348,88591.0,88583.0,0.01037216]
[1769342322606,0.17348,88596.0,88583.0,0.01037216]
[1769342323778,0.17348,88596.0,88582.0,0.4082867]
[1769342325592,0.0001087,88598.0,88582.0,0.4082867]
[1769342325774,0.17348,88596.0,88582.0,0.4082867]
[1769342327478,0.0001087,88598.0,88583.0,1.12363659]
[1769342327792,0.0001087,88598.0,88588.0,0.4082867]
[1769342328014,0.0001087,88598.0,88590.0,0.4082867]
[1769342330932,0.0001087,88598.0,88588.0,9.642e-05]
[1769342331278,0.92367668,88597.0,88588.0,9.642e-05]
[1769342331478,0.92367668,88596.0,88588.0,9.642e-05]
[1769342334370,0.41515327,88593.0,88588.0,9.642e-05]
[1769342334567,0.92358122,88590.0,88588.0,9.642e-05]
[1769342335519,0.41515327,88594.0,88588.0,9.642e-05]
[1769342336072,1.33873449,88594.0,88588.0,9.642e-05]
[1769342336605,0.92358122,88593.0,88588.0,9.642e-05]
[1769342336806,0.41515327,88593.0,88588.0,9.642e-05]
[1769342337013,0.92358122,88592.0,88588.0,9.642e-05]
[1769342337226,0.41515327,88590.0,88588.0,9.642e-05]
[1769342337427,0.0001087,88598.0,88588.0,9.642e-05]
[1769342337428,1.33362612,88589.0,88588.0,9.642e-05]
[1769342338138,0.91847285,88589.0,88588.0,9.642e-05]
[1769342338511,0.41515327,88594.0,88588.0,9.642e-05]
[1769342342239,0.91852394,88595.0,88588.0,9.642e-05]
[1769342344134,0.0001087,88598.0,88588.0,1.14669985]
[1769342344338,0.17348,88597.0,88588.0,1.25830263]
[1769342344763,0.17348,88597.0,88588.0,0.1116992]
[1769342345090,0.17348,88597.0,88588.0,9.642e-05]
[1769342365652,0.17348,88597.0,88561.0,1.0805562]
[1769342365653,0.41792682,88596.0,88561.0,1.0805562]
[1769342365870,0.41792682,88596.0,88566.0,1.0805562]
[1769342365871,0.91852394,88595.0,88566.0,1.0805562]
[1769342366070,0.91852394,88595.0,88563.0,0.01129139]
[1769342366071,0.91852394,88595.0,88569.0,0.39393509]
[1769342366404,0.91852394,88595.0,88574.0,0.39393509]
[1769342366580,0.91852394,88595.0,88563.0,0.01129139]
[1769342366581,0.91852394,88595.0,88576.0,0.39393509]
[1769342366767,0.91867114,88595.0,88578.0,0.39393509]
[1769342366972,0.91867114,88595.0,88579.0,1.47449129]
[1769342367904,0.0001472,88595.0,88580.0,1.0805562]
[1769342371615,0.0001472,88595.0,88580.0,1.47449129]
[1769342371783,0.00013936,88596.0,88580.0,1.0805562]
[1769342371983,0.00013936,88596.0,88581.0,0.39393509]
[1769342377694,0.0452,88595.0,88581.0,0.39393509]
[1769342378384,0.0452,88595.0,88550.0,0.27120774]
[1769342378698,0.0452,88595.0,88564.0,0.40009392]
[1769342378699,0.96398474,88595.0,88564.0,0.40009392]
[1769342378895,0.96398474,88595.0,88566.0,0.40009392]
[1769342379046,0.96398474,88595.0,88569.0,1.0604088]
[1769342379047,0.91852394,88594.0,88569.0,1.0604088]
[1769342379247,0.91852394,88594.0,88573.0,0.40009392]
[1769342379466,0.91852394,88594.0,88575.0,0.40009392]
[1769342379900,0.91878474,88594.0,88575.0,0.40009392]
[1769342380057,0.91878474,88594.0,88576.0,0.40009392]
[1769342380265,0.91682017,88594.0,88576.0,0.40009392]
[1769342382228,0.91682017,88594.0,88562.0,0.01129152]
[1769342382229,0.91682017,88594.0,88577.0,1.46050272]
[1769342382444,0.0002608,88594.0,88578.0,1.0604088]
[1769342382593,0.21868,88593.0,88581.0,0.40009392]
[1769342382791,0.21868,88593.0,88583.0,0.34356223]
[1769342383033,0.2189408,88593.0,88585.0,0.40009392]
[1769342391603,0.2189408,88593.0,88580.0,0.40009392]
[1769342396497,0.2189408,88593.0,88580.0,0.36869392]
[1769342397128,0.2189408,88593.0,88564.0,1.0604088]
[1769342397330,0.42243766,88592.0,88568.0,0.40009392]
[1769342397550,0.42243766,88592.0,88571.0,1.0604088]
[1769342397758,0.42243766,88592.0,88573.0,1.0604088]
[1769342397960,0.42243766,88592.0,88574.0,0.40009392]
[1769342398159,0.42243766,88592.0,88575.0,1.0604088]
[1769342399543,0.0452,88591.0,88575.0,1.0604088]
[1769342400320,0.97254538,88590.0,88574.0,0.40009392]
[1769342400539,1.39498304,88590.0,88574.0,0.40009392]
[1769342400823,0.0452,88591.0,88570.0,1.0604088]
[1769342401000,0.42243766,88588.0,88571.0,0.0103158]
[1769342401238,1.39498304,88587.0,88571.0,0.0103158]
[1769342401450,1.39498304,88587.0,88570.0,1.0604088]
[1769342402118,1.39509584,88587.0,88570.0,1.0604088]
[1769342402488,0.97265818,88587.0,88570.0,1.0604088]
[1769342402656,0.97254538,88586.0,88568.0,0.40009392]
[1769342402851,0.39559203,88583.0,88563.0,1.0604088]
[1769342403049,1.11399834,88580.0,88563.0,1.0604088]
[1769342403252,0.0001128,88584.0,88565.0,0.4081742]
[1769342403449,3.22,88583.0,88566.0,1.14532473]
[1769342403654,3.22,88583.0,88566.0,1.13609069]
[1769342404026,3.22,88583.0,88566.0,1.54426489]
[1769342404962,3.22,88583.0,88567.0,0.0089129]
[1769342405294,0.71840631,88580.0,88556.0,1.13609069]
[1769342405425,0.39559203,88578.0,88558.0,1.13609069]
[1769342405630,0.39559203,88576.0,88558.0,1.13609069]
[1769342405846,0.17348,88579.0,88553.0,0.0001832]
[1769342405847,0.39559203,88574.0,88553.0,0.0001832]
[1769342406026,0.39559203,88572.0,88553.0,0.0001832]
[1769342406233,0.76360631,88571.0,88553.0,0.0001832]
[1769342406456,0.39559203,88570.0,88553.0,0.0001832]
[1769342406657,0.0452,88571.0,88553.0,0.0001832]
[1769342407071,1.11399834,88569.0,88553.0,0.0001832]
[1769342407651,0.01129075,88568.0,88553.0,0.0001832]
[1769342407856,1.12528909,88568.0,88553.0,0.0001832]
[1769342408094,1.11399834,88568.0,88553.0,0.0001832]
[1769342408286,0.01129088,88567.0,88553.0,0.00065664]
[1769342408450,0.39559203,88566.0,88553.0,0.00065664]
[1769342409417,0.38559203,88566.0,88553.0,0.00065664]
[1769342411705,0.71840631,88565.0,88553.0,0.00065664]
[1769342411882,0.39559203,88564.0,88553.0,0.00065664]
[1769342412716,0.39559203,88562.0,88553.0,0.00065664]
[1769342412916,0.17352,88561.0,88553.0,0.00065664]
[1769342415306,0.17352,88562.0,88557.0,0.41009769]
[1769342415507,0.21872,88570.0,88561.0,1.13127922]
[1769342417323,0.21872,88570.0,88562.0,0.00107261]
[1769342417657,0.17352,88573.0,88562.0,0.00107261]
[1769342418207,0.17352,88573.0,88557.0,0.00107261]
[1769342418721,0.01004,88572.0,88556.0,1.13127922]
[1769342419035,1.47561402,88570.0,88553.0,0.00065664]
[1769342419357,0.17352,88573.0,88553.0,0.00065664]
[1769342419358,0.01004,88569.0,88553.0,0.00065664]
[1769342419554,1.47561402,88568.0,88553.0,0.00065664]
[1769342419758,3.22,88566.0,88553.0,0.00065664]
[1769342420013,0.17352,88573.0,88553.0,0.00065664]
[1769342420014,0.01004,88565.0,88553.0,0.00065664]
[1769342420146,3.22,88570.0,88553.0,0.00065664]
[1769342420351,3.22,88567.0,88553.0,0.00065664]
[1769342420553,0.39147512,88565.0,88553.0,0.00065664]
[1769342420872,1.48565402,88564.0,88553.0,0.00065664]
[1769342421076,1.47561402,88564.0,88553.0,0.00065664]
[1769342421253,0.01004,88563.0,88553.0,0.00065664]
[1769342429497,0.17352,88562.0,88553.0,0.00065664]
[1769342429696,0.01004,88561.0,88553.0,0.00065664]
[1769342432417,0.17352,88562.0,88553.0,1.13193586]
[1769342432636,0.17352,88562.0,88554.0,0.41211505]
[1769342432892,0.17352,88562.0,88554.0,0.41009769]
[1769342434100,0.01004,88561.0,88553.0,0.00065664]
[1769342435045,0.17352,88562.0,88553.0,0.00065664]
[1769342435251,0.17352,88562.0,88553.0,0.00178546]
[1769342435802,0.17352,88562.0,88553.0,1.10996883]
[1769342435985,0.17352,88562.0,88553.0,1.10884001]
[1769342436760,0.41475681,88578.0,88556.0,1.10818337]
[1769342437113,1.11046227,88576.0,88557.0,0.41599987]
[1769342437310,3.22,88574.0,88557.0,0.41599987]
[1769342437474,3.22,88574.0,88557.0,1.52418324]
[1769342438079,3.059117,88573.0,88557.0,1.52418324]
[1769342438389,3.059117,88574.0,88558.0,0.06616151]
[1769342442060,2.4776,88574.0,88558.0,0.06616151]
[1769342442262,2.4776,88574.0,88559.0,0.11160278]
[1769342442741,2.4776,88574.0,88558.0,0.07828732]
[1769342442941,0.41475681,88576.0,88558.0,0.00307914]
[1769342443141,0.21872,88577.0,88554.0,0.0001156]
[1769342443342,0.21872,88577.0,88554.0,0.00319488]
[1769342443545,0.21872,88577.0,88556.0,0.41599987]
[1769342443745,0.21872,88577.0,88560.0,0.41599987]
[1769342443942,0.21872,88577.0,88561.0,1.10818337]
[1769342444575,0.1912,88576.0,88561.0,1.10818337]
[1769342445661,0.1811,88576.0,88561.0,1.10818337]
[1769342447880,0.18907727,88577.0,88561.0,1.10818337]
[1769342448068,1.9307,88576.0,88561.0,1.10818337]
[1769342448267,1.7506,88576.0,88561.0,1.10818337]
[1769342448755,0.18907727,88577.0,88561.0,1.17035711]
[1769342448943,1.7516,88576.0,88561.0,1.17035711]
[1769342449140,1.4483,88576.0,88561.0,1.17035711]
[1769342449895,1.16,88576.0,88561.0,1.17035711]
[1769342451436,1.0779,88576.0,88562.0,0.0018044]
[1769342451841,1.0779,88576.0,88561.0,1.10818337]
[1769342453098,0.41475681,88574.0,88562.0,0.00180418]
[1769342453297,0.41475681,88574.0,88558.0,0.00180421]
[1769342453474,0.41475681,88574.0,88555.0,0.41599987]
[1769342453648,0.41475681,88574.0,88556.0,1.1108696]
[1769342453852,0.41475681,88574.0,88557.0,1.10818337]
[1769342454097,0.41475681,88574.0,88558.0,1.11009256]
[1769342454286,0.41475681,88574.0,88559.0,0.0019092]
[1769342455702,0.41475681,88571.0,88554.0,0.0001156]
[1769342455902,0.41475681,88569.0,88554.0,0.0001156]
[1769342456127,0.41475681,88567.0,88554.0,0.0001156]
[1769342458623,0.41475681,88564.0,88554.0,0.0001156]
[1769342460498,0.41475681,88562.0,88554.0,0.0001156]
[1769342461136,0.41475681,88560.0,88554.0,0.0001156]
[1769342462092,0.17352,88566.0,88554.0,0.0001156]
[1769342462291,0.02003277,88573.0,88554.0,0.0001156]
[1769342462292,0.18356,88573.0,88556.0,0.41599987]
[1769342462491,0.18356,88573.0,88559.0,1.10818337]
[1769342462696,0.0045191,88591.0,88560.0,0.41599987]
[1769342462930,0.12732,88584.0,88565.0,0.38954129]
[1769342463127,0.12732,88584.0,88569.0,1.0825886]
[1769342463355,0.12732,88584.0,88571.0,1.0825886]
[1769342463866,0.12732,88584.0,88570.0,0.38954129]
[1769342464069,1.11551509,88581.0,88557.0,0.04165889]
[1769342464203,0.40773805,88580.0,88558.0,0.01227232]
[1769342464412,0.40773805,88580.0,88558.0,0.38954129]
[1769342464680,0.40773805,88580.0,88559.0,0.01227956]
[1769342464882,0.40773805,88580.0,88555.0,1.0825886]
[1769342465049,0.40773805,88580.0,88558.0,0.38954129]
[1769342465212,0.40773805,88580.0,88561.0,1.0825886]
[1769342466303,0.40773805,88580.0,88562.0,1.09373895]
[1769342466447,0.40773805,88580.0,88562.0,1.0825886]
[1769342466657,0.40773805,88580.0,88563.0,0.01227876]
[1769342467051,0.40773805,88580.0,88562.0,1.0825886]
[1769342467777,0.40773805,88580.0,88563.0,0.01114976]
[1769342467977,0.40773805,88580.0,88562.0,1.0825886]
[1769342468748,0.40773805,88579.0,88562.0,1.0825886]
[1769342469227,0.40773805,88578.0,88562.0,1.18058631]
[1769342470673,0.40773805,88578.0,88562.0,1.18158631]
[1769342471213,0.40773805,88578.0,88562.0,1.18058631]
[1769342473549,0.40773805,88578.0,88562.0,1.0825886]
[1769342473743,0.95210098,88578.0,88554.0,0.03501619]
[1769342473892,0.95210098,88577.0,88556.0,1.0825886]
[1769342474092,0.40773805,88576.0,88556.0,0.41964226]
[1769342474296,0.40773805,88576.0,88557.0,0.41964226]
[1769342474492,0.40773805,88576.0,88559.0,0.41964226]
[1769342474734,0.95210098,88582.0,88562.0,1.11165309]
[1769342474943,0.95210098,88582.0,88564.0,1.11165309]
[1769342475461,0.95210098,88580.0,88556.0,1.11165309]
[1769342475657,0.95210098,88578.0,88557.0,0.11160278]
[1769342475828,0.95210098,88578.0,88557.0,1.22325587]
[1769342475829,0.42588757,88577.0,88557.0,1.22325587]
[1769342477136,0.42588757,88577.0,88559.0,1.11165309]
[1769342482245,0.42588757,88577.0,88560.0,0.01308788]
[1769342482462,0.42588757,88577.0,88560.0,1.11165309]
[1769342482884,0.42588757,88577.0,88561.0,0.01310349]